Cogmind - Beta 16.1 @@@ ROGUE MODE // 2026.05.03 @ 15:45:46 Player: spider Result: Self-destructed Performance ------------- Evolutions (0) 0 Regions Visited (3) 600 Robots Destroyed (15) 75 Value Destroyed (273) 273 Prototype IDs (0) 0 Alien Tech Used (0) 0 Bonus (0) 0 TOTAL SCORE: 948 Bonus ------- None Cogmind --------- Core Integrity 223/250 Matter 300/300 Energy 125/125 System Corruption 0% Temperature Cool (0) Movement Treading (240) Ox1 Location -7/Scraptown Parts ------- > --- POWER (1) -------- Light Ion Engine > --- PROPULSION (2) --- Light Treads Light Treads > --- UTILITY (2) ------ High-capacity Storage Unit Medium Armor Plating > --- WEAPON (2) ------- Subdweller Laser Subdweller Machine Gun > --- INVENTORY (20) --- Ion Engine Light Treads Light Treads Large Storage Unit Seismic Detector Medium Armor Plating Medium Armor Plating Heavy Assault Rifle Heavy Assault Rifle Heavy Assault Rifle Heavy Assault Rifle Autogun Autogun Autogun Autogun Subdweller Machine Gun EMP Blaster Mini Grenade Launcher Mini Grenade Launcher Mining Laser Peak State ------------ > --- POWER ------------ Light Ion Engine > --- PROPULSION ------- Light Treads Light Treads > --- UTILITY ---------- High-capacity Storage Unit Medium Armor Plating > --- WEAPON ----------- Heavy Assault Rifle Heavy Assault Rifle > --- INVENTORY -------- Ion Engine Light Treads Light Treads Large Storage Unit Seismic Detector Medium Armor Plating Medium Armor Plating Medium Armor Plating Heavy Assault Rifle Heavy Assault Rifle Autogun Autogun Autogun Autogun EMP Blaster Mini Grenade Launcher Mini Grenade Launcher Mining Laser [Rating: 13] Favorites ----------- Power Light Ion Engine Engine Light Ion Engine Propulsion Light Treads Treads Light Treads Leg Aluminum Leg Utility Medium Armor Plating Storage High-capacity Storage Unit Protection Medium Armor Plating Weapon Heavy Assault Rifle Energy Gun Subdweller Laser Ballistic Gun Heavy Assault Rifle Build | -11 -10 -10 -7 ------- Run | Yrd Mat Sub Scr Slots Evolved . | . . . . Power . | . . . . Propulsion . | . . . . Utility . | . . . . Weapon . | . . . . Parts Attached 14 | 4 6 4 . Power . | . . . . Engine . | . . . . Core . | . . . . Reactor . | . . . . Propulsion 2 | 2 . . . Treads 2 | 2 . . . Leg . | . . . . Wheel . | . . . . Hover . | . . . . Flight . | . . . . Utility 5 | . 4 1 . Device . | . . . . Storage 3 | . 3 . . Processor . | . . . . Hackware . | . . . . Protection 2 | . 1 1 . Artifact . | . . . . Weapon 7 | 2 2 3 . Energy Gun 2 | 1 . 1 . Energy Cannon . | . . . . Ballistic Gun 5 | 1 2 2 . Ballistic Cannon . | . . . . Launcher . | . . . . Special Weapon . | . . . . Impact Weapon . | . . . . Slashing Weapon . | . . . . Piercing Weapon . | . . . . Special Melee Weapon . | . . . . Unidentified Prototypes . | . . . . Parts Lost . | . . . . Power . | . . . . Propulsion . | . . . . Utility . | . . . . Weapon . | . . . . Highest Loss Streak . | . . . . To Critical Strikes . | . . . . Average Backups 15 | 6 11 19 20 Power 1 | 1 1 1 1 Propulsion 1 | 4 1 2 2 Utility 4 | . 3 4 4 Weapon 8 | 1 4 11 13 Tool/Special . | . . . . Unused Backups 24 | . 9 . 15 Power . | . . . . Propulsion 4 | . 2 . 2 Utility 5 | . 2 . 3 Weapon 15 | . 5 . 10 Tool/Special . | . . . . Average Slot Usage (%) 98 | . 96 100 100 Engine 14 | . 14 14 14 Treads 28 | . 28 28 28 Storage 14 | . 14 14 14 Protection 12 | . 10 14 14 Energy Gun 7 | . 6 7 14 Ballistic Gun 20 | . 21 20 14 Peak Build Rating 13 | 6 13 13 13 Average Rating 11 | 6 10 13 13 On Entrance 9 | 6 6 13 13 Avg Prop Armor Cover (%) . | . . . . Naked Turns . | . . . . Heaviest Build 58 | 12 56 58 58 Greatest Support 40 | 40 40 40 40 Greatest Overweight (x) 1 | . 1 1 1 Average Overweight (x) . | . . 1 1 Largest Inventory Capacity 20 | 8 20 20 20 Average Capacity 16 | 8 13 20 20 Most Carried 20 | 7 18 20 20 Average Carried 15 | 6 11 19 20 Final Capacity 20 | 8 20 20 20 Final Carried 20 | 7 18 20 20 Class Distribution -------------------- 100% | Mutant Dominant Class ---------------- Mutant | -10/Materials Mutant | -10/Subcaves Mutant | -7/Scraptown Resources | -11 -10 -10 -7 ----------- Run | Yrd Mat Sub Scr Matter Collected 518 | 226 153 139 . Remotely . | . . . . Salvage Created 441 | 116 242 83 . Parts 39 | 7 26 6 . Haulers Intercepted 2 | . 2 . . Recyclers Shooed . | . . . . Parts Field Recycled . | . . . . Retrieved Matter . | . . . . Parts Self-Destructed . | . . . . Prevented . | . . . . Parts Restored . | . . . . Kills | -11 -10 -10 -7 ------- Run | Yrd Mat Sub Scr Combat Hostiles Destroyed 10 | . 7 3 . Guns 10 | . 7 3 . Classes Destroyed 7 | 2 4 1 . Builder 1 | . 1 . . Tunneler 1 | 1 . . . Hauler 2 | . 2 . . Recycler 1 | 1 . . . Swarmer 5 | . 5 . . Grunt 2 | . 2 . . Subdweller 3 | . . 3 . Best Kill Streak 4 | 2 4 1 . Combat Bots Only 3 | . 3 1 . Max Kills in Single Turn 1 | 1 1 1 . Gunslinging . | . . . . Exploded . | . . . . Melee . | . . . . Uniques/NPCs Destroyed . | . . . . Combat | -11 -10 -10 -7 -------- Run | Yrd Mat Sub Scr Hostile Shots Fired 52 | . 31 21 . Missed 17 | . 12 5 . Hits 35 | . 19 16 . Projectile 35 | . 19 16 . Critical Strikes 1 | . . 1 . Damage Taken 564 | . 175 389 . Core 27 | . 6 21 . Absorbed by Shields . | . . . . Core Remaining (%) 100 | 100 . . . Volleys Fired 46 | 5 25 16 . Largest 2 | 2 2 2 . Hottest 90 | 80 46 90 . Shots Fired 90 | 9 50 31 . Gun 90 | 9 50 31 . Cannon . | . . . . Launcher . | . . . . Special . | . . . . Kinetic 75 | 1 50 24 . Thermal 7 | . . 7 . Explosive . | . . . . Electromagnetic 8 | 8 . . . Robot Hit Streak 15 | 5 15 9 . Robot Miss Streak 6 | 2 6 2 . Penetration Max . | . . . . Secondary Targets 1 | . 1 . . Max Gunslinging Chain 1 | . 1 . . Shots Hit Robots 54 | 6 27 21 . Core Hits 21 | 3 13 5 . Critical Kills . | . . . . Critical Parts Destroyed . | . . . . Critical Strikes 1 | . . 1 . Destroy 1 | . . 1 . Melee Attacks . | . . . . Impact . | . . . . Slashing . | . . . . Piercing . | . . . . Sneak Attacks . | . . . . Combat Hostiles . | . . . . Follow-up Attacks . | . . . . Damage Inflicted 956 | 77 465 414 . Guns 888 | 77 397 414 . Cannons . | . . . . Explosions . | . . . . Melee . | . . . . Ramming 68 | . 68 . . Kinetic 720 | 13 397 310 . Thermal 104 | . . 104 . Explosive . | . . . . Electromagnetic 64 | 64 . . . Impact . | . . . . Slashing . | . . . . Piercing . | . . . . Highest Corruption . | . . . . Average Corruption . | . . . . Corruption Purged . | . . . . Corruption Blocked . | . . . . Overload Shots . | . . . . Overflow Damage . | . . . . Projectiles . | . . . . Explosions . | . . . . Melee . | . . . . Knockbacks . | . . . . Impact . | . . . . Kinetic . | . . . . Secondary . | . . . . Self-Inflicted Damage . | . . . . Shots . | . . . . Rammed 14 | . 14 . . Targets Rammed 15 | . 15 . . Kicked . | . . . . Crushed 1 | . 1 . . Highest Temperature 72 | 72 18 . . Average Temperature 22 | 37 9 . . Received Heat Transfer 42 | . 36 6 . Siege Activations . | . . . . Martial Activations . | . . . . Shielding Activations . | . . . . Robots Disrupted . | . . . . Combat Hostiles . | . . . . Robots Corrupted . | . . . . Combat Hostiles . | . . . . Parts Fried . | . . . . Impact Corruptions . | . . . . Robots Melted . | . . . . Combat Hostiles . | . . . . Parts Melted . | . . . . Heat Transferred 125 | . . 125 . Parts Sabotaged . | . . . . Parts Stolen . | . . . . Parts Stripped . | . . . . Power Chain Reactions . | . . . . Alert | -11 -10 -10 -7 ------- Run | Yrd Mat Sub Scr Maximum Alert Level . | . . . . Low Security (%) 100 | 100 100 . . Level 1 . | . . . . Level 2 . | . . . . Level 3 . | . . . . Level 4 . | . . . . Level 5 . | . . . . High Security . | . . . . Max Security . | . . . . Peak Influence 195 | 10 195 . . Initial . | . . . . Average 56 | 2 57 . . Influence Increases 313 | 10 303 . . Destroy 0b10 Robot/C 140 | . 140 . . Destroy 0b10 Robot/NC 25 | 10 15 . . Destroy Leader 24 | . 24 . . Successful Hack 33 | . 33 . . Destroy Structure 1 | . 1 . . Lose Combat Pursuer 90 | . 90 . . Influence Decreases 313 | 10 229 74 . Entered New Map 36 | . . 36 . Time Decay 277 | 10 229 38 . Squads Dispatched . | . . . . Investigation . | . . . . Extermination . | . . . . Reinforcement . | . . . . Assault . | . . . . Garrison . | . . . . Intercept . | . . . . Searches Triggered . | . . . . Construction Impeded . | . . . . Haulers Reinforced . | . . . . Active Scanning Responses . | . . . . Cargo Convoy Interrupts . | . . . . Stealth | -11 -10 -10 -7 --------- Run | Yrd Mat Sub Scr Distress Signals 2 | . 2 . . Communications Jammed . | . . . . Distress Signals . | . . . . Times Spotted 24 | . 19 5 . Peak Tracking Total 6 | . 6 1 . Tactical Retreats 3 | . 3 . . Traps | -11 -10 -10 -7 ------- Run | Yrd Mat Sub Scr Traps Triggered 1 | . . 1 . Indirectly . | . . . . Trap Hack Attempts . | . . . . Triggered . | . . . . Disarmed . | . . . . Reprogrammed . | . . . . Reused . | . . . . Traps Extracted . | . . . . Installed . | . . . . Triggered . | . . . . Machines | -11 -10 -10 -7 ---------- Run | Yrd Mat Sub Scr Machines Disabled . | . . . . Max in Single Turn . | . . . . Machines Repaired . | . . . . Machines Dismantled . | . . . . Machines Sabotaged . | . . . . Overloaded Fab Kills . | . . . . Hacking | -11 -10 -10 -7 --------- Run | Yrd Mat Sub Scr Machines Accessed 9 | . 9 . . Terminals 6 | . 6 . . Fabricators . | . . . . Repair Stations 1 | . 1 . . Recycling Units 2 | . 2 . . Scanalyzers . | . . . . Garrison Access . | . . . . Total Hacks 29 | . 29 . . Successful 15 | . 15 . . Failed 14 | . 14 . . Catastrophic 2 | . 2 . . Database Lockouts . | . . . . Manual 25 | . 25 . . Terminals 25 | . 25 . . Fabricators . | . . . . Repair Stations 1 | . 1 . . Recycling Units 3 | . 3 . . Scanalyzers . | . . . . Garrison Access . | . . . . Terminal Hacks 8 | . 8 . . Part Schematic 2 | . 2 . . Robot Analysis 1 | . 1 . . Terminal Index 1 | . 1 . . Locate Traps 1 | . 1 . . Patrol Status 1 | . 1 . . Zone Layout 2 | . 2 . . Fabricator Hacks . | . . . . Repair Station Hacks . | . . . . Recycling Unit Hacks 1 | . 1 . . Retrieve Components 1 | . 1 . . Scanalyzer . | . . . . Garrison Access Hacks . | . . . . Unauthorized Hacks 6 | . 6 . . Terminals 6 | . 6 . . Botnet 2 | . 2 . . Skim 4 | . 4 . . Fabricators . | . . . . Repair Stations . | . . . . Recycling Units . | . . . . Scanalyzers . | . . . . Garrison Access . | . . . . Data Cores Recovered . | . . . . Used . | . . . . Hacking Detections 8 | . 8 . . Full Trace Events 1 | . 1 . . Feedback Events . | . . . . Feedback Blocked . | . . . . Robot Schematics Acquired . | . . . . Robots Built . | . . . . Authchips . | . . . . Time . | . . . . Total Robot Build Rating . | . . . . Part Schematics Acquired 2 | . 2 . . Parts Built . | . . . . Authchips . | . . . . Time . | . . . . Total Part Build Rating . | . . . . Part Studies Acquired . | . . . . Parts Repaired . | . . . . Time . | . . . . Parts Recycled . | . . . . Recycled Matter . | . . . . Retrieved Matter . | . . . . Retrieved Components 2 | . 2 . . Parts Scanalyzed . | . . . . Part Schematics Acquired . | . . . . Parts Damaged . | . . . . Bothacking | -11 -10 -10 -7 ------------ Run | Yrd Mat Sub Scr Used RIF Installer . | . . . . Robots Hacked . | . . . . Non-combat . | . . . . Combat . | . . . . Robot Hacks Applied . | . . . . Relay Couplers Released . | . . . . Fabnet Peak Effective % . | . . . . Robots Rewired . | . . . . Allies Hacked . | . . . . Hacks Repelled . | . . . . Allies | -11 -10 -10 -7 -------- Run | Yrd Mat Sub Scr Total Allies . | . . . . Largest Group . | . . . . Highest-Rated Group . | . . . . Highest-Rated Ally . | . . . . Total Orders . | . . . . Ally Attacks . | . . . . Total Damage . | . . . . Kills . | . . . . Allies Corrupted . | . . . . Allies Melted . | . . . . Intel | -11 -10 -10 -7 ------- Run | Yrd Mat Sub Scr Active Infowar (turns) . | . . . . Robot Analysis Total 1 | . 1 . . Derelict Logs Recovered . | . . . . Drone Launches . | . . . . Drone Recoveries . | . . . . Exploration | -11 -10 -10 -7 ------------- Run | Yrd Mat Sub Scr Turns Passed 3518 | 28 1532 1751 207 Spaces Moved 1543 | 5 768 684 86 Core . | . . . . Treads 1543 | 5 768 684 86 Legs . | . . . . Wheels . | . . . . Hover . | . . . . Flight . | . . . . Fastest Speed 160 | 160 160 240 240 Average Speed 209 | 160 179 240 240 Slowest Speed 240 | 160 240 240 240 Overloaded Moves . | . . . . Propulsion Burnouts . | . . . . Robots Hopped . | . . . . Potential Cave-ins . | . . . . Cave-ins Triggered . | . . . . Exploration Rate (%) 34 | 2 96 31 8 Regions Visited 3 Branch Regions 2 Pre-discovered Areas . | . . . . Known Exits Taken . | . . . . Unknown Exits Taken 3 | 1 1 1 . Scrap Searched 3 | . . . 3 Spaces Dug . | . . . . Terrain Destroyed . | . . . . Melee . | . . . . Projectile . | . . . . AOE . | . . . . Terrain Rammed . | . . . . Walls Destroyed . | . . . . Machines Disabled . | . . . . Actions | -11 -10 -10 -7 --------- Run | Yrd Mat Sub Scr Total 1731 | 14 872 759 86 Wait 74 | . 23 51 . Move 1540 | 4 767 683 86 Hop . | . . . . Pick Up 25 | 1 21 3 . Fast Attach 3 | . 3 . . Attach . | . . . . Detach . | . . . . Swap 12 | 4 3 5 . Drop 16 | . 15 1 . Fire 46 | 5 25 16 . Melee . | . . . . Ram . | . . . . Kick . | . . . . Crush 15 | . 15 . . Escape Stasis . | . . . . Rewire . | . . . . Trap . | . . . . Miscellaneous . | . . . . Route ------- -11/Scrapyard -10/Materials (discovered 5 exits: [*Mat x3] / [*Min] / [*Sub]) -10/Subcaves (discovered 2 exits: [*Mat] / [*Scr]) -7/Scraptown History --------- Turn | Location | Event 20 | -11/Scrapyard | Discovered new exit (range 1) 29 | -11/Scrapyard | Entered Materials 30 | -10/Materials | Met a group of wandering Federalists 114 | -10/Materials | Discovered new exit (range 7) 251 | -10/Materials | Discovered new exit (range 14) 312 | -10/Materials | Build established: Mutant 619 | -10/Materials | Discovered new exit (range 15) 980 | -10/Materials | Discovered new exit (range 14) 1127 | -10/Materials | Discovered new exit (range 5) 1561 | -10/Materials | Entered Subcaves 1562 | -10/Subcaves | Continued accompanying wandering Federalists (5) 1562 | -10/Subcaves | Approached by a straggling Scientist 1611 | -10/Subcaves | Discovered new exit (range 12) 1668 | -10/Subcaves | Lost 3 allies 1818 | -10/Subcaves | Wandering Federalist uncovered a shortcut to Scraptown 2693 | -10/Subcaves | A swath of the cavern ceiling suddenly collapsed 3312 | -10/Subcaves | Entered Scraptown 3464 | -7/Scraptown | Heard Great Nut preacher, LISTEN AND RECITE! 3519 | -7/Scraptown | Self-destructed Last Messages --------------- 03344_ Found Gatling Laser. 03344_ Found 34 Matter. 03382_ Searching scrap... 03382_ Found Particle Charger. 03382_ Found Weapon Cycler. 03382_ Found Force Booster. 03382_ Found 35 Matter. KTG-V3: LISTEN AND RECITE! 20 Flipping the symbolic switch 21 a gleaming universe stirred 22 birthing new life to witness 23 our planet swallow old homes 24 for posterity in time 25 PRAISE BE TO GREAT NUT! 03516_ Searching scrap... 03516_ Found Mak. Targeting Computer. 03516_ Found Adv. Terrain Scan Processor. 03516_ Found Imp. Signal Interpreter. 03516_ Found Imp. EM Pulse Cannon. 03516_ Found 61 Matter. Map ----- +----------------------------------------------------+ | ????????????????????????????????????????????????? | | ????????????????????????????????????????????????? | | ???????????????????????????????????#????????????? | | ?????????????????????????????????? #????????????? | | ???????????????????????#####?????? #????????????? | | ???????????????????????#"""#????? #????????????? | | ???????????????????????#" "#????? #????????????? | | ???????????????????????# #???? #????????????? | | ???????????????????????# ##### #????????????? | | ???????????????????????# ##???????????? | | ???????????????????????# #???????????? | | ???????????????????????# ##????##?????? | | ???????????????????????##### ### ##????"""????"" | | ???????????????????????????# #????????"" ""??""" | | ??????????????????????###### ######???"" "?#""" | | ??????????????????????#""""" """""#??#" ""##"" | | ??????????????????????#"""%" " "#??#"" ""##"" | | ??????????????????????#" [ "#??#"" ""##" | | ??????????????????????#""""" """""#??#"" ""##"| | | ??????????##??????????###### ######??#" ""##"" | | ??????????# ############# #########"" ""##"" | | ??????????# | | ??????????# | | ??????????# ###"""" """"######"""" """""###### | | ?????????????????#""" """#????#" "#????# | | ?????????????????#""" !@""#????#" "#????# | | ?????????????????#"""" ]!!"#????#" ! ! "#????# | | ?????????????????#""""" "#????#"""""%! "#????# | | ?????????????????#"""""""""#????#""""""""""#????# | | ??????????????????##########????############????# | | | | | | | | | | | | | | | | | | | | | | | | | | | | | | | | | | | | | | | | | +----------------------------------------------------+ Best States ------------- Heat Dissipation 25 Energy Generation 10 Energy Capacity 125 Matter Stores 300 Matter Capacity 300 Sight Range 16 Terrain Scan Density 10 Armor Coverage 225 Evasion (%) 40 Recoil Reduction 2 Item Schematics ----------------- Huge Storage Unit | -10/Materials | Hacked Hcp. Storage Unit | -10/Materials | Hacked Robot Schematics ------------------ None Fabricated ------------ Nothing Repaired ---------- Nothing Studied --------- None Alien Tech Used ----------------- None Achievements -------------- None Challenges ------------ None Game ------ Seed SubatomicShockboltHammer Manual? 0 Play Time 00:14:46 Cumulative 465.3 hours Start 2026.05.03 @ 13:35:34 End 2026.05.03 @ 15:45:46 Sessions 4 Manual Loads 0 Difficulty Rogue Special Mode None Game No. 167 Rogue 166 Adventurer 1 Explorer 0 Win Type - Total 21 Types 7/2/2/1/1/1/4/1/1/1 Lore% 65 Gallery% 83 Achievement% 77 Wizard Run 0 Options --------- Layout 0 ASCII 0 Keyboard 0 Movement Arrows Keybinds 0 Fullscreen 2 Font 24/Smallcaps Map View 76x50 Zoom Use 0% Tactical HUD 1 Map Filters NONE Filters NONE Steam 1 RUN: 867c2f75-10e8-49ff-a55e-eb7dc38c21c6